{"text_format":"1","workbook":"xlsx","n_sheets":6,"sheets":["Home","CauseWise Statement","CW Intuitive Detail","CW Analytical Detail","CW Causes & Confirmation","Master Lists"],"not_rendered":{"charts":0,"images":6,"macros":1,"external_links":0,"defined_names":0,"comments":4,"pivot_tables":0},"unopened":[],"bounds":{"document_bytes":16777216,"sheet_cells":100000,"rows_first":2000,"rows_last":500,"rows_between":2000,"halvings":0,"cell_chars":16384,"cell_head_chars":4096},"cells_cut":0,"cells_raw":0,"read":"whole","date_system":"1900"}

{"sheet":"Home","index":0,"n_rows":18,"n_cols":3,"rows_kept":18,"cut":false,"hidden":false,"merged":[]}
[]
[null,null,"PriorityWise One"]
[null,null,"PriorityWise  Two"]
[]
[null,null,"ThinkingWise One"]
[null,null,"ThinkingWise Two"]
[]
[null,null,"CauseWise Statement"]
[null,null,"CauseWise - Intuitive Detail"]
[null,null,"CauseWise - Analytical Detail"]
[null,null,"CauseWise - Causes and Confirmation"]
[]
[null,null,"SolutionWise Requirements"]
[null,null,"SolutionWise - Maxfour"]
[null,null,"SolutionWise - Create a Solution"]
[null,null,"SolutionWise - Making a Choice"]
[]
[null,null,"RiskWise"]

{"sheet":"CauseWise Statement","index":1,"n_rows":28,"n_cols":9,"rows_kept":28,"cut":false,"hidden":false,"merged":[[19,8,20,9],[21,8,21,9],[21,2,21,3],[21,5,21,6],[23,4,23,9],[13,8,14,9],[14,2,14,3],[14,5,14,6],[0,2,0,9],[23,2,23,3],[18,2,18,3],[18,5,18,6],[19,2,19,3],[19,5,19,6],[20,2,20,3],[20,5,20,6],[15,2,15,3],[15,5,15,6],[16,2,16,3],[16,5,16,6],[17,2,17,3],[6,8,6,9],[2,4,3,9],[15,8,16,9],[17,8,18,9],[7,2,7,3],[7,5,7,6],[7,8,8,9],[8,2,8,3],[8,5,8,6],[9,2,9,3],[9,5,9,6],[9,8,10,9],[10,2,10,3],[10,5,10,6],[11,8,12,9],[12,2,12,3],[27,3,27,6],[2,2,3,3],[5,2,5,3],[5,5,5,6],[6,2,6,3],[6,5,6,6],[12,5,12,6],[13,2,13,3],[13,5,13,6],[17,5,17,6],[11,2,11,3],[11,5,11,6]]}
["HOME",null,"CauseWise - Statement"]
[]
["NEXT",null,"1. Determine the Incident/Problem Statement"]
[]
[]
[null,null,"    List the OBJECT Information",null,null,"List the FAULT Information",null,null,"Incident Statement Rules"]
[null,null,"What is the specific object/thing you are having a problem with?",null,null,"What is wrong with the object?",null,null," 1.  Focus on ONE object and ONE fault"]
[null,null,null,null,null,null,null,null," 2.  Avoid location, timing, frequency or user experience in FAULT column"]
[]
[null,null,null,null,null,null,null,null," 3.  Develop the most specific \"Object\" family"]
[]
[null,null,null,null,null,null,null,null,"4.  The cause must be unknown"]
[]
[null,null,null,null,null,null,null,null,"5.  ASK: Can you be more specific? What do you mean by \"X\"?"]
[]
[null,null,null,null,null,null,null,null,"6. ASK: Do you know the cause of this fault?"]
[]
[null,null,null,null,null,null,null,null,"7. ASK: Which fault would be the most accurate fault to resolve?"]
[]
[null,null,null,null,null,null,null,null,"8: ASK: Finally, which OBJECT has this FAULT?"]
[]
[]
[]
[null,null,"1. Restate the Final Incident/Problem Statement"]
[]
[]
[]
[null,null,null,"Copyright © 1998-2016 Thinking Dimensions Global. All rights Reserved."]

{"sheet":"CW Intuitive Detail","index":2,"n_rows":61,"n_cols":10,"rows_kept":61,"cut":false,"hidden":false,"merged":[[24,8,25,8],[24,9,25,10],[26,8,27,8],[26,9,27,10],[28,8,29,8],[28,9,29,10],[16,8,17,8],[16,9,17,10],[14,8,15,8],[14,9,15,10],[3,8,3,10],[4,8,5,10],[6,8,7,8],[6,9,7,10],[0,2,0,6],[2,3,2,6],[60,4,60,5],[33,9,33,10],[20,8,21,8],[20,9,21,10],[22,8,23,8],[22,9,23,10],[8,8,9,8],[8,9,9,10],[10,8,11,8],[10,9,11,10],[18,8,19,8],[18,9,19,10],[12,8,13,8],[12,9,13,10]]}
["HOME",null,"CauseWise INTUITIVE: Incident / Problem Detail"]
[]
["NEXT",null,"1. Determine the Incident/Problem Statement",{"$f":"IF('CauseWise Statement'!E24 = \"\", \"\", 'CauseWise Statement'!E24)","v":""}]
["BACK",null,"2. Incident/Problem Detail",null,null,null,null,null,"3. Generate Possible Causes"]
[null,null,"IS",null,"BUT NOT",null,"WHY (NOT)",null,"Looking at all the \"WHY NOT\" contributions what would you say is causing the incidents?"]
[null,null,"WHAT  "]
[null,null,"1. What is the thing you are having the problem with?",null,"What other smilar objects could have the same fault, but does not?",null,"Why do we have a problem with this specific object and not with the others? ",null,1]
[]
[null,null,null,null,null,null,null,null,2]
[]
[null,null,null,null,null,null,null,null,3]
[]
[null,null,"2. What is wrong with the Object? (Fault)",null,"What other similar faults could be observed with this object, but are not?",null,"Why do we have this specific fault and not the other similar faults? ",null,4]
[]
[null,null,null,null,null,null,null,null,5]
[]
[null,null,null,null,null,null,null,null,6]
[]
[null,null,"WHO",null,null,null,null,null,7]
[null,null,"3. Which Users are having this problem?",null,"Which users could be experiencing the same fault, but do not?",null,"Why are these users having this problem and the others users are not?"]
[null,null,null,null,null,null,null,null,8]
[]
[null,null,null,null,null,null,null,null,9]
[]
[null,null,null,null,null,null,null,null,10]
[null,null,"WHERE"]
[null,null,"4. Geographically where are the users when the fault is noticed?",null,"Geograhically, where else could users have experienced this fault, but they do not?",null,"Why do we have the problem at this location and not the other locations? ",null,11]
[]
[null,null,null,null,null,null,null,null,12]
[]
[]
[]
[null,null,"5. Where is the fault located on the object?",null,"Where else could the fault be located on the object, but is not?",null,"Why is the fault specifically located at that place and not at any other place on the object? "]
[null,null,null,null,null,null,null,null,null,"Copyright © 1998-2016 Thinking Dimensions Global. All rights Reserved."]
[]
[]
[]
[]
[null,null,"WHEN"]
[null,null,"6. At what time and date was the fault first noticed?",null,"When could the fault have been noticed first, but was not?",null,"Why did the fault occur at tis specific time and not at any other time?"]
[]
[]
[]
[null,null,"7. What is the pattern of occurrences?",null,"What could the pattern of occurences be, but is not?",null,"Why this pattern and not any of the other patterns?"]
[]
[]
[]
[null,null,"8. In which phase of the operation was the fault first noticed?",null,"In which phase of the operationcould you have first noticed the fault, but you did not?",null,"Why was the fault noticed at this phase of the operation and not at any other phase?"]
[]
[]
[]
[null,null,"9. What was the user doing when the fault was noticed?",null,"What could the user have been doing or been busy with when the fault was noticed, but was not?",null,"Why was the fault noticed at this stage of the operation and not at any other stage?"]
[]
[]
[]
[null,null,"10. What is unique about the fault and not recorded yet?",null,"What uniqueness could it have been, but is not?",null,"Why this uniqueness? or What could explain this uniqueness?"]
[]
[]
[]
[]
[null,null,null,null,"Copyright © 1998-2016 Thinking Dimensions Global. All rights Reserved."]

{"sheet":"CW Analytical Detail","index":3,"n_rows":55,"n_cols":12,"rows_kept":55,"cut":false,"hidden":false,"merged":[[26,11,27,12],[28,10,29,10],[28,11,29,12],[20,11,21,12],[22,10,23,10],[22,11,23,12],[24,10,25,10],[24,11,25,12],[8,10,9,10],[10,10,11,10],[54,2,54,8],[2,3,2,8],[20,10,21,10],[26,10,27,10],[0,2,0,8],[38,11,38,12],[12,10,13,10],[18,10,19,10],[6,11,7,12],[8,11,9,12],[10,11,11,12],[12,11,13,12],[14,11,15,12],[16,11,17,12],[18,11,19,12],[14,10,15,10],[16,10,17,10],[3,10,3,12],[4,10,5,12],[6,10,7,10]]}
["HOME",null,"CauseWise ANALYTICAL: Incident / Problem Detail"]
[]
["NEXT",null,"1. State the Problem"]
["BACK",null,"2. Problem Detail",null,null,null,null,null,null,null,"3. Generate Possible Causes"]
[null,null,"IS",null,"BUT NOT",null,"DIFFERENCES",null,"CHANGES",null,"Looking at the changes, how could each change have caused the incident?"]
[null,null,"   WHAT  "]
[null,null,"1. The specific object?",null,"Objects that could have had the same problem?",null,"Differences in objects?",null,"What has changed?",null,1]
[]
[null,null,null,null,null,null,null,null,null,null,2]
[]
[null,null,"2. The specific fault?",null,"Similar faults which could have occurred?",null,"Differences in faults?",null,"What has changed?",null,3]
[]
[null,null,null,null,null,null,null,null,null,null,4]
[]
[null,null,"WHERE",null,null,null,null,null,null,null,5]
[null,null,"3. Geographic location of the object?",null,"Other locations the object could have been?",null,"Uniqueness of geographic location?",null,"What has changed?"]
[null,null,null,null,null,null,null,null,null,null,6]
[]
[null,null,null,null,null,null,null,null,null,null,7]
[null,null,"4. Location of the fault on the object?",null,"Other locations the fault could have been on the object?",null,"Uniqueness of fault location?",null,{"$f":"I16","v":"What has changed?"}]
[null,null,null,null,null,null,null,null,null,null,8]
[]
[null,null,null,null,null,null,null,null,null,null,9]
[null,null,"WHEN"]
[null,null,"5. Date/time first noticed?",null,"When could the fault have been first noticed?",null,"What is unique about the DATE?",null,{"$f":"I20","v":"What has changed?"},null,10]
[]
[null,null,null,null,null,null,null,null,null,null,11]
[]
[null,null,"6. The pattern of occurrences?",null,"Which pattern could it have been?",null,"What is unique about the PATTERN?",null,{"$f":"I25","v":"What has changed?"},null,12]
[]
[]
[]
[null,null,"7. Sequence of events/life cycle?",null,"Other sequences of events/life cycle?",null,"Lifecycle differences?",null,{"$f":"I29","v":"What has changed?"}]
[]
[]
[]
[null,null,"SIZE (OPTIONAL)"]
[null,null,"8. Number of objects with fault?",null,"How many objects could have had the fault?"]
[null,null,null,null,null,null,null,null,null,null,null,"Copyright © 1998-2016 Thinking Dimensions Global. All rights Reserved."]
[]
[]
[null,null,"9. Number of faults on one object?",null,"How many faults could there have been on one object?"]
[]
[]
[]
[null,null,"10. Size of the fault?",null,"What size could the fault have been?"]
[]
[]
[]
[null,null,"11. Trend?",null,"What could the trend have been?"]
[]
[]
[]
[]
[null,null,"  Copyright 1998-2015 © KEPNERandFOURIE. All rights reserved."]

{"sheet":"CW Causes & Confirmation","index":4,"n_rows":56,"n_cols":22,"rows_kept":56,"cut":false,"hidden":false,"merged":[[44,6,47,6],[44,7,45,15],[48,6,51,6],[48,7,49,15],[40,6,43,6],[40,7,41,15],[16,6,19,6],[16,7,17,15],[20,6,23,6],[20,7,21,15],[24,6,27,6],[24,7,25,15],[36,6,39,6],[36,7,37,15],[24,18,25,18],[24,19,25,19],[24,20,25,21],[28,20,29,21],[36,18,36,20],[28,6,31,6],[28,7,29,15],[32,6,35,6],[32,7,33,15],[12,6,15,6],[3,7,3,15],[2,18,2,21],[6,18,7,19],[6,20,7,20],[6,21,7,21],[4,18,5,19],[4,20,5,20],[4,7,5,15],[8,7,9,15],[12,7,13,15],[0,2,0,16],[4,21,5,21],[2,6,2,16],[4,6,7,6],[8,6,11,6],[20,19,21,19],[20,20,21,21],[8,18,9,19],[8,20,9,20],[8,21,9,21],[10,18,11,19],[10,20,11,20],[10,21,11,21],[18,18,18,21],[12,18,13,19],[12,20,13,20],[12,21,13,21],[14,18,15,19],[14,20,15,20],[14,21,15,21],[55,2,55,15],[55,19,55,20],[3,18,3,19],[19,20,19,21],[22,18,23,18],[22,19,23,19],[22,20,23,21],[30,18,31,18],[30,19,31,19],[30,20,31,21],[28,18,29,18],[28,19,29,19],[26,18,27,18],[26,19,27,19],[26,20,27,21],[20,18,21,18]]}
["HOME",null,"CauseWise - Causes, Testing & Verification"]
[]
[null,null,"2. Incident/Problem Detail",null,null,null,"  4a. Confirm True Cause - Testing",null,null,null,null,null,null,null,null,null,null,null,"4b. Confirm True Cause - Verification Steps"]
["BACK",null,"IS",null,"BUT NOT",null,"#","Generate Possible Causes",null,null,null,null,null,null,null,null,"ASSUMPTIONS",null,"ACTIONS",null,"WHO","WHEN (DATE)"]
[null,null,"1. What is the thing you are having the problem with?",null,"What other smilar objects could have the same fault, but does not?",null,1,{"$f":"IF('CW Intuitive Detail'!J7<>\"\",'CW Intuitive Detail'!J7,IF('CW Analytical Detail'!L7<>\"\",'CW Analytical Detail'!L7,\"\"))","v":""},null,null,null,null,null,null,null,null," "]
[null,null,{"$f":"IF('CW Intuitive Detail'!C8<>\"\",'CW Intuitive Detail'!C8,\"\")","v":""},null,{"$f":"IF('CW Intuitive Detail'!E8<>\"\",'CW Intuitive Detail'!E8,\"\")","v":""},null,null,null,null,null,null,null,null,null,null,null," "]
[null,null,{"$f":"IF('CW Intuitive Detail'!C9<>\"\",'CW Intuitive Detail'!C9,\"\")","v":""},null,{"$f":"IF('CW Intuitive Detail'!E9<>\"\",'CW Intuitive Detail'!E9,\"\")","v":""},null,null,1,2,3,4,5,6,7,8,9]
[null,null,{"$f":"IF('CW Intuitive Detail'!C10<>\"\",'CW Intuitive Detail'!C10,\"\")","v":""},null,{"$f":"IF('CW Intuitive Detail'!E10<>\"\",'CW Intuitive Detail'!E10,\"\")","v":""}]
[null,null,{"$f":"IF('CW Intuitive Detail'!C11<>\"\",'CW Intuitive Detail'!C11,\"\")","v":""},null,{"$f":"IF('CW Intuitive Detail'!E11<>\"\",'CW Intuitive Detail'!E11,\"\")","v":""},null,2,{"$f":"IF('CW Intuitive Detail'!J9<>\"\",'CW Intuitive Detail'!J9,IF('CW Analytical Detail'!L9<>\"\",'CW Analytical Detail'!L9,\"\"))","v":""}]
[null,null,{"$f":"IF('CW Intuitive Detail'!C12<>\"\",'CW Intuitive Detail'!C12,\"\")","v":""},null,{"$f":"IF('CW Intuitive Detail'!E12<>\"\",'CW Intuitive Detail'!E12,\"\")","v":""}]
[null,null,"2. What is wrong with the Object? (Fault)",null,"What other similar faults could be observed with this object, but are not?",null,null,1,2,3,4,5,6,7,8,9]
[null,null,{"$f":"IF('CW Intuitive Detail'!C14<>\"\",'CW Intuitive Detail'!C14,\"\")","v":""},null,{"$f":"IF('CW Intuitive Detail'!E14<>\"\",'CW Intuitive Detail'!E14,\"\")","v":""}]
[null,null,{"$f":"IF('CW Intuitive Detail'!C15<>\"\",'CW Intuitive Detail'!C15,\"\")","v":""},null,{"$f":"IF('CW Intuitive Detail'!E15<>\"\",'CW Intuitive Detail'!E15,\"\")","v":""},null,3,{"$f":"IF('CW Intuitive Detail'!J11<>\"\",'CW Intuitive Detail'!J11,IF('CW Analytical Detail'!L11<>\"\",'CW Analytical Detail'!L11,\"\"))","v":""},null,null,null,null,null,null,null,null," "]
[null,null,{"$f":"IF('CW Intuitive Detail'!C16<>\"\",'CW Intuitive Detail'!C16,\"\")","v":""},null,{"$f":"IF('CW Intuitive Detail'!E16<>\"\",'CW Intuitive Detail'!E16,\"\")","v":""},null,null,null,null,null,null,null,null,null,null,null," "]
[null,null,{"$f":"IF('CW Intuitive Detail'!C17<>\"\",'CW Intuitive Detail'!C17,\"\")","v":""},null,{"$f":"IF('CW Intuitive Detail'!E17<>\"\",'CW Intuitive Detail'!E17,\"\")","v":""},null,null,1,2,3,4,5,6,7,8,9]
[null,null,{"$f":"IF('CW Intuitive Detail'!C18<>\"\",'CW Intuitive Detail'!C18,\"\")","v":""},null,{"$f":"IF('CW Intuitive Detail'!E18<>\"\",'CW Intuitive Detail'!E18,\"\")","v":""}]
[null,null,"3. Which Users are having this problem?",null,"Which users could be experiencing the same fault, but do not?",null,4,{"$f":"IF('CW Intuitive Detail'!J13<>\"\",'CW Intuitive Detail'!J13,IF('CW Analytical Detail'!L13<>\"\",'CW Analytical Detail'!L13,\"\"))","v":""},null,null,null,null,null,null,null,null," "]
[null,null,{"$f":"IF('CW Intuitive Detail'!C21<>\"\",'CW Intuitive Detail'!C21,\"\")","v":""},null,{"$f":"IF('CW Intuitive Detail'!E21<>\"\",'CW Intuitive Detail'!E21,\"\")","v":""},null,null,null,null,null,null,null,null,null,null,null," "]
[null,null,{"$f":"IF('CW Intuitive Detail'!C22<>\"\",'CW Intuitive Detail'!C22,\"\")","v":""},null,{"$f":"IF('CW Intuitive Detail'!E22<>\"\",'CW Intuitive Detail'!E22,\"\")","v":""},null,null,1,2,3,4,5,6,7,8,9,null,null,"Check Your Thinking"]
[null,null,{"$f":"IF('CW Intuitive Detail'!C23<>\"\",'CW Intuitive Detail'!C23,\"\")","v":""},null,{"$f":"IF('CW Intuitive Detail'!E23<>\"\",'CW Intuitive Detail'!E23,\"\")","v":""},null,null,null,null,null,null,null,null,null,null,null,null,null,"IDENTIFY RISKS","LIKELY REASONS FOR RISKS","IDENTIFY AVOIDING ACTIONS"]
[null,null,{"$f":"IF('CW Intuitive Detail'!C24<>\"\",'CW Intuitive Detail'!C24,\"\")","v":""},null,{"$f":"IF('CW Intuitive Detail'!E24<>\"\",'CW Intuitive Detail'!E24,\"\")","v":""},null,5,{"$f":"IF('CW Intuitive Detail'!J15<>\"\",'CW Intuitive Detail'!J15,IF('CW Analytical Detail'!L15<>\"\",'CW Analytical Detail'!L15,\"\"))","v":""}]
[null,null,{"$f":"IF('CW Intuitive Detail'!C25<>\"\",'CW Intuitive Detail'!C25,\"\")","v":""},null,{"$f":"IF('CW Intuitive Detail'!E25<>\"\",'CW Intuitive Detail'!E25,\"\")","v":""}]
[null,null,"4. Geographically where are the users when the fault is noticed?",null,"Geograhically, where else could users have experienced this fault, but they do not?",null,null,1,2,3,4,5,6,7,8,9]
[null,null,{"$f":"IF('CW Intuitive Detail'!C28<>\"\",'CW Intuitive Detail'!C28,\"\")","v":""},null,{"$f":"IF('CW Intuitive Detail'!E28<>\"\",'CW Intuitive Detail'!E28,\"\")","v":""}]
[null,null,{"$f":"IF('CW Intuitive Detail'!C29<>\"\",'CW Intuitive Detail'!C29,\"\")","v":""},null,{"$f":"IF('CW Intuitive Detail'!E29<>\"\",'CW Intuitive Detail'!E29,\"\")","v":""},null,6,{"$f":"IF('CW Intuitive Detail'!J17<>\"\",'CW Intuitive Detail'!J17,IF('CW Analytical Detail'!L17<>\"\",'CW Analytical Detail'!L17,\"\"))","v":""},null,null,null,null,null,null,null,null," "]
[null,null,{"$f":"IF('CW Intuitive Detail'!C30<>\"\",'CW Intuitive Detail'!C30,\"\")","v":""},null,{"$f":"IF('CW Intuitive Detail'!E30<>\"\",'CW Intuitive Detail'!E30,\"\")","v":""},null,null,null,null,null,null,null,null,null,null,null," "]
[null,null,{"$f":"IF('CW Intuitive Detail'!C31<>\"\",'CW Intuitive Detail'!C31,\"\")","v":""},null,{"$f":"IF('CW Intuitive Detail'!E31<>\"\",'CW Intuitive Detail'!E31,\"\")","v":""},null,null,1,2,3,4,5,6,7,8,9]
[null,null,{"$f":"IF('CW Intuitive Detail'!C32<>\"\",'CW Intuitive Detail'!C32,\"\")","v":""},null,{"$f":"IF('CW Intuitive Detail'!E32<>\"\",'CW Intuitive Detail'!E32,\"\")","v":""}]
[null,null,"5. Where is the fault located on the object?",null,"Where else could the fault be located on the object, but is not?",null,7,{"$f":"IF('CW Intuitive Detail'!J19<>\"\",'CW Intuitive Detail'!J19,IF('CW Analytical Detail'!L19<>\"\",'CW Analytical Detail'!L19,\"\"))","v":""},null,null,null,null,null,null,null,null," "]
[null,null,{"$f":"IF('CW Intuitive Detail'!C34<>\"\",'CW Intuitive Detail'!C34,\"\")","v":""},null,{"$f":"IF('CW Intuitive Detail'!E34<>\"\",'CW Intuitive Detail'!E34,\"\")","v":""},null,null,null,null,null,null,null,null,null,null,null," "]
[null,null,{"$f":"IF('CW Intuitive Detail'!C35<>\"\",'CW Intuitive Detail'!C35,\"\")","v":""},null,{"$f":"IF('CW Intuitive Detail'!E35<>\"\",'CW Intuitive Detail'!E35,\"\")","v":""},null,null,1,2,3,4,5,6,7,8,9]
[null,null,{"$f":"IF('CW Intuitive Detail'!C36<>\"\",'CW Intuitive Detail'!C36,\"\")","v":""},null,{"$f":"IF('CW Intuitive Detail'!E36<>\"\",'CW Intuitive Detail'!E36,\"\")","v":""}]
[null,null,{"$f":"IF('CW Intuitive Detail'!C37<>\"\",'CW Intuitive Detail'!C37,\"\")","v":""},null,{"$f":"IF('CW Intuitive Detail'!E37<>\"\",'CW Intuitive Detail'!E37,\"\")","v":""},null,8,{"$f":"IF('CW Intuitive Detail'!J21<>\"\",'CW Intuitive Detail'!J21,IF('CW Analytical Detail'!L21<>\"\",'CW Analytical Detail'!L21,\"\"))","v":""}]
[null,null,{"$f":"IF('CW Intuitive Detail'!C38<>\"\",'CW Intuitive Detail'!C38,\"\")","v":""},null,{"$f":"IF('CW Intuitive Detail'!E38<>\"\",'CW Intuitive Detail'!E38,\"\")","v":""}]
[null,null,"6. At what time and date was the fault first noticed?",null,"When could the fault have been noticed first, but was not?",null,null,1,2,3,4,5,6,7,8,9]
[null,null,{"$f":"IF('CW Intuitive Detail'!C41<>\"\",'CW Intuitive Detail'!C41,\"\")","v":""},null,{"$f":"IF('CW Intuitive Detail'!E41<>\"\",'CW Intuitive Detail'!E41,\"\")","v":""}]
[null,null,{"$f":"IF('CW Intuitive Detail'!C42<>\"\",'CW Intuitive Detail'!C42,\"\")","v":""},null,{"$f":"IF('CW Intuitive Detail'!E42<>\"\",'CW Intuitive Detail'!E42,\"\")","v":""},null,9,{"$f":"IF('CW Intuitive Detail'!J23<>\"\",'CW Intuitive Detail'!J23,IF('CW Analytical Detail'!L23<>\"\",'CW Analytical Detail'!L23,\"\"))","v":""},null,null,null,null,null,null,null,null," ",null,"Copyright © 1998-2016 Thinking Dimensions Global. All rights Reserved."]
[null,null,{"$f":"IF('CW Intuitive Detail'!C43<>\"\",'CW Intuitive Detail'!C43,\"\")","v":""},null,{"$f":"IF('CW Intuitive Detail'!E43<>\"\",'CW Intuitive Detail'!E43,\"\")","v":""},null,null,null,null,null,null,null,null,null,null,null," "]
[null,null,"7. What is the pattern of occurrences?",null,"What could the pattern of occurences be, but is not?",null,null,1,2,3,4,5,6,7,8,9]
[null,null,{"$f":"IF('CW Intuitive Detail'!C45<>\"\",'CW Intuitive Detail'!C45,\"\")","v":""},null,{"$f":"IF('CW Intuitive Detail'!E45<>\"\",'CW Intuitive Detail'!E45,\"\")","v":""}]
[null,null,{"$f":"IF('CW Intuitive Detail'!C46<>\"\",'CW Intuitive Detail'!C46,\"\")","v":""},null,{"$f":"IF('CW Intuitive Detail'!E46<>\"\",'CW Intuitive Detail'!E46,\"\")","v":""},null,10,{"$f":"IF('CW Intuitive Detail'!J25<>\"\",'CW Intuitive Detail'!J25,IF('CW Analytical Detail'!L25<>\"\",'CW Analytical Detail'!L25,\"\"))","v":""},null,null,null,null,null,null,null,null," "]
[null,null,{"$f":"IF('CW Intuitive Detail'!C47<>\"\",'CW Intuitive Detail'!C47,\"\")","v":""},null,{"$f":"IF('CW Intuitive Detail'!E47<>\"\",'CW Intuitive Detail'!E47,\"\")","v":""},null,null,null,null,null,null,null,null,null,null,null," "]
[null,null,"8. In which phase of the operation was the fault first noticed?",null,"In which phase of the operationcould you have first noticed the fault, but you did not?",null,null,1,2,3,4,5,6,7,8,9]
[null,null,{"$f":"IF('CW Intuitive Detail'!C49<>\"\",'CW Intuitive Detail'!C49,\"\")","v":""},null,{"$f":"IF('CW Intuitive Detail'!E49<>\"\",'CW Intuitive Detail'!E49,\"\")","v":""}]
[null,null,{"$f":"IF('CW Intuitive Detail'!C50<>\"\",'CW Intuitive Detail'!C50,\"\")","v":""},null,{"$f":"IF('CW Intuitive Detail'!E50<>\"\",'CW Intuitive Detail'!E50,\"\")","v":""},null,11,{"$f":"IF('CW Intuitive Detail'!J27<>\"\",'CW Intuitive Detail'!J27,IF('CW Analytical Detail'!L27<>\"\",'CW Analytical Detail'!L27,\"\"))","v":""},null,null,null,null,null,null,null,null," "]
[null,null,{"$f":"IF('CW Intuitive Detail'!C51<>\"\",'CW Intuitive Detail'!C51,\"\")","v":""},null,{"$f":"IF('CW Intuitive Detail'!E51<>\"\",'CW Intuitive Detail'!E51,\"\")","v":""},null,null,null,null,null,null,null,null,null,null,null," "]
[null,null,"9. What was the user doing when the fault was noticed?",null,"What could the user have been doing or been busy with when the fault was noticed, but was not?",null,null,1,2,3,4,5,6,7,8,9]
[null,null,{"$f":"IF('CW Intuitive Detail'!C53<>\"\",'CW Intuitive Detail'!C53,\"\")","v":""},null,{"$f":"IF('CW Intuitive Detail'!E53<>\"\",'CW Intuitive Detail'!E53,\"\")","v":""}]
[null,null,{"$f":"IF('CW Intuitive Detail'!C54<>\"\",'CW Intuitive Detail'!C54,\"\")","v":""},null,{"$f":"IF('CW Intuitive Detail'!E54<>\"\",'CW Intuitive Detail'!E54,\"\")","v":""},null,12,{"$f":"IF('CW Intuitive Detail'!J29<>\"\",'CW Intuitive Detail'!J29,IF('CW Analytical Detail'!L29<>\"\",'CW Analytical Detail'!L29,\"\"))","v":""},null,null,null,null,null,null,null,null," "]
[null,null,{"$f":"IF('CW Intuitive Detail'!C55<>\"\",'CW Intuitive Detail'!C55,\"\")","v":""},null,{"$f":"IF('CW Intuitive Detail'!E55<>\"\",'CW Intuitive Detail'!E55,\"\")","v":""},null,null,null,null,null,null,null,null,null,null,null," "]
[null,null,"10. What is unique about the fault and not recorded yet?",null,"What uniqueness could it have been, but is not?",null,null,1,2,3,4,5,6,7,8,9]
[null,null,{"$f":"IF('CW Intuitive Detail'!C57<>\"\",'CW Intuitive Detail'!C57,\"\")","v":""},null,{"$f":"IF('CW Intuitive Detail'!E57<>\"\",'CW Intuitive Detail'!E57,\"\")","v":""}]
[null,null,{"$f":"IF('CW Intuitive Detail'!C58<>\"\",'CW Intuitive Detail'!C58,\"\")","v":""},null,{"$f":"IF('CW Intuitive Detail'!E58<>\"\",'CW Intuitive Detail'!E58,\"\")","v":""}]
[null,null,{"$f":"IF('CW Intuitive Detail'!C59<>\"\",'CW Intuitive Detail'!C59,\"\")","v":""},null,{"$f":"IF('CW Intuitive Detail'!E59<>\"\",'CW Intuitive Detail'!E59,\"\")","v":""}]
[]
[null,null,"Copyright © 1998-2016 Thinking Dimensions Global. All rights Reserved."]

{"sheet":"Master Lists","index":5,"n_rows":28,"n_cols":9,"rows_kept":28,"cut":false,"hidden":true,"merged":[]}
["PRIORITYWISE LISTS",null,"THINKINGWISE LISTS",null,"SOLUTIONWISE LISTS",null,"CAUSEWISE LISTS",null,"RISKWISE LISTS"]
[]
["High",null,"√",null,3,null,"YES",null,"H"]
["Medium",null,"½",null,2,null,"NO",null,"M"]
["Low",null,null,null,1,null,"A",null,"L"]
[null,null,null,null,0]
["Cause "]
["Effect",null,null,null,1]
[null,null,null,null,2]
["Core Issue",null,null,null,3]
[null,null,null,null,4]
[null,null,null,null,5]
[null,null,null,null,6]
["Home",null,null,null,7]
[null,null,null,null,8]
[null,null,null,null,9]
[null,null,null,null,10]
[]
[null,null,null,null,"YES"]
[null,null,null,null,"NO"]
[null,null,null,null,"N/A"]
[]
[null,null,null,null,"√"]
[null,null,null,null,"½"]
[]
[null,null,null,null,"Min. Req."]
[]
[null,null,null,null,"Best Alternative"]